Workbook

Sheet ML
A1: 财 政 决 算 报 表 目 录
A3: 表号 | B3: 表名
A5: 01表 | B5: 一般公共预算收入决算表
A6: 02表 | B6: 一般公共预算本级收入决算表
A7: 03表 | B7: 一般公共预算支出决算表
A8: 04表 | B8: 一般公共预算本级支出决算表
A9: 05表 | B9: 一般公共预算本级基本支出决算表
A10: 06表 | B10: 一般公共预算税收返还和转移支付决算表
A12: 07表 | B12: 政府性基金收入决算表
A13: 08表 | B13: 政府性基金支出决算表
A14: 09表 | B14: 政府性基金本级支出决算表
A15: 10表 | B15: 政府性基金转移支付决算表
A17: 11表 | B17: 国有资本经营预算收入决算表
A18: 12表 | B18: 国有资本经营预算支出决算表
A19: 13表 | B19: 国有资本经营预算本级支出决算表
A20: 14表 | B20: 国有资本经营预算转移支付决算表
A22: 15表 | B22: 社会保险基金收入决算表
A23: 16表 | B23: 社会保险基金支出决算表
A24: 17表 | B24: 政府一般债务限额和余额情况决算表
A25: 18表 | B25: 政府专项债务限额和余额情况决算表

Sheet J01
A1: 2024年度涧西区一般公共预算收入决算表
A2: 01表
A3: 单位:万元
A4: 预算科目 | B4: 决算数
A5: 一般公共预算收入合计 | B5: =B6+B21 -> 352365
A6: 税收收入 | B6: =SUM(B7:B20) -> 195417
A7: 增值税 | B7: 73860
A8: 企业所得税 | B8: 27868
A9: 个人所得税 | B9: 10406
A10: 资源税 | B10: 0
A11: 城市维护建设税 | B11: 8536
A12: 房产税 | B12: 23307
A13: 印花税 | B13: 12268
A14: 城镇土地使用税 | B14: 15893
A15: 土地增值税 | B15: 18968
A16: 车船税 | B16: 1516
A17: 耕地占用税 | B17: 2795
A18: 契税 | B18: 0
A19: 环境保护税 | B19: 0
A20: 其他税收收入
A21: 非税收入 | B21: =SUM(B22:B29) -> 156948
A22: 专项收入 | B22: 60
A23: 行政事业性收费收入 | B23: 752
A24: 罚没收入 | B24: 1229
A25: 国有资本经营收入 | B25: 86
A26: 国有资源（资产）有偿使用收入 | B26: 147917
A27: 捐赠收入 | B27: 0
A28: 政府住房基金收入 | B28: 3869
A29: 其他收入 | B29: 3035

Sheet J02
A1: 2024年度涧西区一般公共预算本级收入决算表
A2: 02表
A3: 单位:万元
A4: 预算科目 | B4: 决算数
A5: 税收收入 | B5: =B6+B44+B64+B189+B254+B261+B266+B282+B291+B297+B306+B315+B318+B321+B324+B336+B340+B343+B346+B349 -> 102,931
A6: 增值税 | B6: =SUM(B7,B37,B41) -> 35,950
A7: 国内增值税 | B7: =SUM(B8:B36) -> 35,950
A8: 国有企业增值税 | B8: 1,389
A9: 集体企业增值税 | B9: 22
A10: 股份制企业增值税 | B10: 19,714
A11: 联营企业增值税 | B11: 15
A12: 港澳台和外商投资企业增值税 | B12: 1,560
A13: 私营企业增值税 | B13: 9,251
A14: 中国国家铁路集团有限公司改征增值税待分配收入
A15: 中国国家铁路集团有限公司改征增值税收入
A16: 其他增值税 | B16: 1,058
A17: 增值税税款滞纳金、罚款收入 | B17: 348
A18: 残疾人就业增值税退税 | B18: -147
A19: 软件增值税退税 | B19: -450
A20: 宣传文化单位增值税退税
A21: 核电站增值税退税
A22: 资源综合利用增值税退税 | B22: -118
A23: 黄金增值税退税
A24: 光伏发电增值税退税
A25: 风力发电增值税退税
A26: 管道运输增值税退税
A27: 融资租赁增值税退税
A28: 增值税留抵退税 | B28: -2,192
A29: 增值税留抵退税省级调库
A30: 增值税留抵退税省级以下调库
A31: 其他增值税退税
A32: 免抵调增增值税 | B32: 5,500
A33: 成品油价格和税费改革增值税划出
A34: 成品油价格和税费改革增值税划入
A35: 跨省管道运输企业增值税
A36: 跨省管道运输企业增值税待分配收入
A37: 进口货物增值税(项) | B37: =SUM(B38:B40) -> 0
A38: 进口货物增值税(目)
A39: 进口货物增值税税款滞纳金、罚款收入
A40: 进口货物退增值税
A41: 出口业务退增值税(项) | B41: =B42+B43 -> 0
A42: 出口业务退增值税(目)
A43: 免抵调减增值税
A44: 消费税 | B44: =SUM(B45,B57,B63) -> 0
A45: 国内消费税 | B45: =SUM(B46:B56) -> 0
A46: 国有企业消费税
A47: 集体企业消费税
A48: 股份制企业消费税
A49: 联营企业消费税
A50: 港澳台和外商投资企业消费税
A51: 私营企业消费税
A52: 成品油消费税
A53: 其他消费税
A54: 消费税税款滞纳金、罚款收入
A55: 成品油消费税退税
A56: 其他消费税退税
A57: 进口消费品消费税 | B57: =SUM(B58:B62) -> 0
A58: 进口成品油消费税
A59: 进口其他消费品消费税
A60: 进口消费品消费税税款滞纳金、罚款收入
A61: 进口成品油消费税退税
A62: 进口其他消费品退消费税
A63: 出口消费品退消费税
A64: 企业所得税 | B64: =SUM(B65:B81,B85:B90,B94,B99:B100,B104:B110,B127:B128,B131:B133,B138,B143,B148,B153,B158,B163,B168,B173,B178,B183,B187,B188) -> 17,268
A65: 国有冶金工业所得税
A66: 国有有色金属工业所得税 | B66: 9
A67: 国有煤炭工业所得税
A68: 国有电力工业所得税
A69: 国有石油和化学工业所得税
A70: 国有机械工业所得税
A71: 国有汽车工业所得税
A72: 国有核工业所得税
A73: 国有航空工业所得税
A74: 国有航天工业所得税
A75: 国有电子工业所得税
A76: 国有兵器工业所得税
A77: 国有船舶工业所得税
A78: 国有建筑材料工业所得税
A79: 国有烟草企业所得税
A80: 国有纺织企业所得税
A81: 国有铁道企业所得税 | B81: =SUM(B82:B84) -> 0
A82: 中国国家铁路集团有限公司集中缴纳的铁路运输企业所得税
A83: 中国国家铁路集团有限公司集中缴纳的铁路运输企业所得税待分配收入
A84: 其他国有铁道企业所得税
A85: 国有交通企业所得税
A86: 国有邮政企业所得税
A87: 国有民航企业所得税
A88: 国有海洋石油天然气企业所得税
A89: 国有外贸企业所得税
A90: 国有银行所得税 | B90: =SUM(B91:B93) -> 0
A91: 中国进出口银行所得税
A92: 中国农业发展银行所得税
A93: 其他国有银行所得税
A94: 国有非银行金融企业所得税 | B94: =SUM(B95:B98) -> 0
A95: 中国建银投资有限责任公司所得税
A96: 中国投资有限责任公司所得税
A97: 中投公司所属其他公司所得税
A98: 其他国有非银行金融企业所得税
A99: 国有保险企业所得税
A100: 国有文教企业所得税 | B100: =SUM(B101:B103) -> 0
A101: 国有电影企业所得税
A102: 国有出版企业所得税
A103: 其他国有文教企业所得税
A104: 国有水产企业所得税
A105: 国有森林工业企业所得税
A106: 国有电信企业所得税
A107: 国有农垦企业所得税
A108: 其他国有企业所得税 | B108: 26
A109: 集体企业所得税 | B109: 3
A110: 股份制企业所得税 | B110: =SUM(B111:B126) -> 9,982
A111: 股份制海洋石油天然气企业所得税
A112: 中国石油天然气股份有限公司所得税
A113: 中国石油化工股份有限公司所得税
A114: 中国工商银行股份有限公司所得税
A115: 中国建设银行股份有限公司所得税
A116: 中国银行股份有限公司所得税
A117: 长江电力股份有限公司所得税
A118: 中国农业银行股份有限公司所得税
A119: 国家开发银行股份有限公司所得税
A120: 中国邮政储蓄银行股份有限公司所得税
A121: 中国信达资产管理股份有限公司所得税
A122: 跨省合资铁路企业所得税
A123: 中国华融资产管理股份有限公司所得税
A124: 中国长城资产管理公司所得税
A125: 中国东方资产管理公司所得税
A126: 其他股份制企业所得税 | B126: 9,982
A127: 联营企业所得税 | B127: 25
A128: 港澳台和外商投资企业所得税 | B128: =B129+B130 -> 410
A129: 港澳台和外商投资海上石油天然气企业所得税
A130: 其他港澳台和外商投资企业所得税 | B130: 410
A131: 私营企业所得税 | B131: 3,532
A132: 其他企业所得税 | B132: 11
A133: 分支机构预缴所得税 | B133: =SUM(B134:B137) -> 54
A134: 国有企业分支机构预缴所得税
A135: 股份制企业分支机构预缴所得税 | B135: 12
A136: 港澳台和外商投资企业分支机构预缴所得税 | B136: 42
A137: 其他企业分支机构预缴所得税
A138: 总机构预缴所得税 | B138: =SUM(B139:B142) -> 7
A139: 国有企业总机构预缴所得税
A140: 股份制企业总机构预缴所得税 | B140: 7
A141: 港澳台和外商投资企业总机构预缴所得税
A142: 其他企业总机构预缴所得税
A143: 总机构汇算清缴所得税 | B143: =SUM(B144:B147) -> 0
A144: 国有企业总机构汇算清缴所得税
A145: 股份制企业总机构汇算清缴所得税
A146: 港澳台和外商投资企业总机构汇算清缴所得税
A147: 其他企业总机构汇算清缴所得税
A148: 企业所得税待分配收入 | B148: =SUM(B149:B152) -> 0
A149: 国有企业所得税待分配收入
A150: 股份制企业所得税待分配收入
A151: 港澳台和外商投资企业所得税待分配收入
A152: 其他企业所得税待分配收入
A153: 跨市县分支机构预缴所得税 | B153: =SUM(B154:B157) -> 919
A154: 国有企业分支机构预缴所得税
A155: 股份制企业分支机构预缴所得税 | B155: 839
A156: 港澳台和外商投资企业分支机构预缴所得税 | B156: 75
A157: 其他企业分支机构预缴所得税 | B157: 5
A158: 跨市县总机构预缴所得税 | B158: =SUM(B159:B162) -> 1,480
A159: 国有企业总机构预缴所得税
A160: 股份制企业总机构预缴所得税 | B160: 1,455
A161: 港澳台和外商投资企业总机构预缴所得税 | B161: 14
A162: 其他企业总机构预缴所得税 | B162: 11
A163: 跨市县总机构汇算清缴所得税 | B163: =SUM(B164:B167) -> 429
A164: 国有企业总机构汇算清缴所得税
A165: 股份制企业总机构汇算清缴所得税 | B165: 414
A166: 港澳台和外商投资企业总机构汇算清缴所得税 | B166: 13
A167: 其他企业总机构汇算清缴所得税 | B167: 2
A168: 省以下企业所得税待分配收入 | B168: =SUM(B169:B172) -> 0
A169: 国有企业所得税待分配收入
A170: 股份制企业所得税待分配收入
A171: 港澳台和外商投资企业所得税待分配收入
A172: 其他企业所得税待分配收入
A173: 跨市县分支机构汇算清缴所得税 | B173: =SUM(B174:B177) -> 170
A174: 国有企业分支机构汇算清缴所得税
A175: 股份制企业分支机构汇算清缴所得税 | B175: 129
A176: 港澳台和外商投资企业分支机构汇算清缴所得税 | B176: 30
A177: 其他企业分支机构汇算清缴所得税 | B177: 11
A178: 分支机构汇算清缴所得税 | B178: =SUM(B179:B182) -> 2
A179: 国有企业分支机构汇算清缴所得税
A180: 股份制企业分支机构汇算清缴所得税 | B180: -2
A181: 港澳台和外商投资企业分支机构汇算清缴所得税 | B181: 4
A182: 其他企业分支机构汇算清缴所得税
A183: 企业所得税税款滞纳金、罚款、加收利息收入 | B183: =SUM(B184:B186) -> 209
A184: 内资企业所得税税款滞纳金、罚款、加收利息收入 | B184: 209
A185: 港澳台和外商投资企业所得税税款滞纳金、罚款、加收利息收入
A186: 中央企业所得税税款滞纳金、罚款、加收利息收入
A187: 跨省管道运输企业所得税
A188: 跨省管道运输企业所得税待分配收入
A189: 企业所得税退税 | B189: =SUM(B190:B212,B216,B219,B220,B224:B229,B241:B243,B248,B253) -> 0
A190: 国有冶金工业所得税退税
A191: 国有有色金属工业所得税退税
A192: 国有煤炭工业所得税退税
A193: 国有电力工业所得税退税
A194: 国有石油和化学工业所得税退税
A195: 国有机械工业所得税退税
A196: 国有汽车工业所得税退税
A197: 国有核工业所得税退税
A198: 国有航空工业所得税退税
A199: 国有航天工业所得税退税
A200: 国有电子工业所得税退税
... 503 more rows

Sheet J03
A1: 2024年度涧西区一般公共预算支出决算表
A2: 03表
A3: 单位:万元
A4: 预算科目 | B4: 决算数
A5: 一般公共预算支出合计 | B5: =SUM(B6:B28) -> 400120
A6: 一般公共服务支出 | B6: 50227
A7: 国防支出 | B7: 116
A8: 公共安全 | B8: 3438
A9: 教育支出 | B9: 69999
A10: 科学技术支出 | B10: 30639
A11: 文化旅游体育与传媒支出 | B11: 1127
A12: 社会保障和就业支出 | B12: 55097
A13: 卫生健康支出 | B13: 27122
A14: 节能环保支出 | B14: 186
A15: 城乡社区支出 | B15: 127354
A16: 农林水支出 | B16: 2689
A17: 交通运输支出 | B17: 55
A18: 资源勘探工业信息等支出 | B18: 1620
A19: 商业服务业等支出 | B19: 3697
A20: 金融支出 | B20: 5
A21: 自然资源海洋气象等支出 | B21: 104
A22: 住房保障支出 | B22: 16901
A23: 粮油物资储备支出 | B23: 0
A24: 灾害防治及应急管理支出 | B24: 2055
A25: 预备费
A26: 其他支出 | B26: 2201
A27: 债务付息支出 | B27: 5487
A28: 债务发行费用支出 | B28: 1

Sheet J04
A1: 2024年度涧西区一般公共预算本级支出决算表
A2: 04表
A3: 单位:万元
A4: 预算科目 | B4: 决算数
A5: 一般公共服务支出 | B5: =B6+B18+B27+B37+B48+B59+B70+B78+B87+B100+B109+B120+B132+B139+B147+B153+B160+B167+B174+B181+B188+B196+B202+B208+B215+B230+B237+B243 -> 36,647
A6: 人大事务 | B6: =SUM(B7:B17) -> 729
A7: 行政运行 | B7: 658
A8: 一般行政管理事务
A9: 机关服务
A10: 人大会议 | B10: 26
A11: 人大立法
A12: 人大监督
A13: 人大代表履职能力提升
A14: 代表工作
A15: 人大信访工作
A16: 事业运行
A17: 其他人大事务支出 | B17: 45
A18: 政协事务 | B18: =SUM(B19:B26) -> 630
A19: 行政运行 | B19: 603
A20: 一般行政管理事务
A21: 机关服务
A22: 政协会议 | B22: 19
A23: 委员视察 | B23: 8
A24: 参政议政
A25: 事业运行
A26: 其他政协事务支出
A27: 政府办公厅(室)及相关机构事务 | B27: =SUM(B28:B36) -> 20,661
A28: 行政运行 | B28: 878
A29: 一般行政管理事务 | B29: 16,964
A30: 机关服务 | B30: 2,147
A31: 专项服务
A32: 专项业务及机关事务管理
A33: 政务公开审批 | B33: 212
A34: 参事事务
A35: 事业运行
A36: 其他政府办公厅(室)及相关机构事务支出 | B36: 460
A37: 发展与改革事务 | B37: =SUM(B38:B47) -> 396
A38: 行政运行 | B38: 396
A39: 一般行政管理事务
A40: 机关服务
A41: 战略规划与实施
A42: 日常经济运行调节
A43: 社会事业发展规划
A44: 经济体制改革研究
A45: 物价管理
A46: 事业运行
A47: 其他发展与改革事务支出
A48: 统计信息事务 | B48: =SUM(B49:B58) -> 542
A49: 行政运行 | B49: 307
A50: 一般行政管理事务
A51: 机关服务
A52: 信息事务
A53: 专项统计业务
A54: 统计管理
A55: 专项普查活动 | B55: 169
A56: 统计抽样调查 | B56: 66
A57: 事业运行
A58: 其他统计信息事务支出
A59: 财政事务 | B59: =SUM(B60:B69) -> 2,812
A60: 行政运行 | B60: 444
A61: 一般行政管理事务
A62: 机关服务
A63: 预算改革业务
A64: 财政国库业务 | B64: 320
A65: 财政监察
A66: 信息化建设
A67: 财政委托业务支出
A68: 事业运行
A69: 其他财政事务支出 | B69: 2,048
A70: 税收事务 | B70: =SUM(B71:B77) -> 0
A71: 行政运行
A72: 一般行政管理事务
A73: 机关服务
A74: 信息化建设
A75: 税收业务
A76: 事业运行
A77: 其他税收事务支出
A78: 审计事务 | B78: =SUM(B79:B86) -> 307
A79: 行政运行 | B79: 297
A80: 一般行政管理事务
A81: 机关服务
A82: 审计业务 | B82: 10
A83: 审计管理
A84: 信息化建设
A85: 事业运行
A86: 其他审计事务支出
A87: 海关事务 | B87: =SUM(B88:B99) -> 0
A88: 行政运行
A89: 一般行政管理事务
A90: 机关服务
A91: 缉私办案
A92: 口岸管理
A93: 信息化建设
A94: 海关关务
A95: 关税征管
A96: 海关监管
A97: 检验检疫
A98: 事业运行
A99: 其他海关事务支出
A100: 纪检监察事务 | B100: =SUM(B101:B108) -> 2,693
A101: 行政运行 | B101: 2,349
A102: 一般行政管理事务 | B102: 323
A103: 机关服务
A104: 大案要案查处
A105: 派驻派出机构
A106: 巡视工作
A107: 事业运行
A108: 其他纪检监察事务支出 | B108: 21
A109: 商贸事务 | B109: =SUM(B110:B119) -> 430
A110: 行政运行
A111: 一般行政管理事务
A112: 机关服务
A113: 对外贸易管理
A114: 国际经济合作
A115: 外资管理
A116: 国内贸易管理
A117: 招商引资 | B117: 430
A118: 事业运行
A119: 其他商贸事务支出
A120: 知识产权事务 | B120: =SUM(B121:B131) -> 0
A121: 行政运行
A122: 一般行政管理事务
A123: 机关服务
A124: 专利审批
A125: 知识产权战略和规划
A126: 国际合作与交流
A127: 知识产权宏观管理
A128: 商标管理
A129: 原产地地理标志管理
A130: 事业运行
A131: 其他知识产权事务支出
A132: 民族事务 | B132: =SUM(B133:B138) -> 0
A133: 行政运行
A134: 一般行政管理事务
A135: 机关服务
A136: 民族工作专项
A137: 事业运行
A138: 其他民族事务支出
A139: 港澳台事务 | B139: =SUM(B140:B146) -> 0
A140: 行政运行
A141: 一般行政管理事务
A142: 机关服务
A143: 港澳事务
A144: 台湾事务
A145: 事业运行
A146: 其他港澳台事务支出
A147: 档案事务 | B147: =SUM(B148:B152) -> 72
A148: 行政运行
A149: 一般行政管理事务
A150: 机关服务
A151: 档案馆 | B151: 72
A152: 其他档案事务支出
A153: 民主党派及工商联事务 | B153: =SUM(B154:B159) -> 0
A154: 行政运行
A155: 一般行政管理事务
A156: 机关服务
A157: 参政议政
A158: 事业运行
A159: 其他民主党派及工商联事务支出
A160: 群众团体事务 | B160: =SUM(B161:B166) -> 249
A161: 行政运行 | B161: 230
A162: 一般行政管理事务 | B162: 12
A163: 机关服务
A164: 工会事务
A165: 事业运行
A166: 其他群众团体事务支出 | B166: 7
A167: 党委办公厅(室)及相关机构事务 | B167: =SUM(B168:B173) -> 553
A168: 行政运行 | B168: 542
A169: 一般行政管理事务 | B169: 11
A170: 机关服务
A171: 专项业务
A172: 事业运行
A173: 其他党委办公厅(室)及相关机构事务支出
A174: 组织事务 | B174: =SUM(B175:B180) -> 1,246
A175: 行政运行 | B175: 1,123
A176: 一般行政管理事务 | B176: 18
A177: 机关服务
A178: 公务员事务
A179: 事业运行
A180: 其他组织事务支出 | B180: 105
A181: 宣传事务 | B181: =SUM(B182:B187) -> 417
A182: 行政运行 | B182: 335
A183: 一般行政管理事务 | B183: 82
A184: 机关服务
A185: 宣传管理
A186: 事业运行
A187: 其他宣传事务支出
A188: 统战事务 | B188: =SUM(B189:B195) -> 328
A189: 行政运行 | B189: 312
A190: 一般行政管理事务
A191: 机关服务
A192: 宗教事务 | B192: 16
A193: 华侨事务
A194: 事业运行
A195: 其他统战事务支出
A196: 对外联络事务 | B196: =SUM(B197:B201) -> 0
A197: 行政运行
A198: 一般行政管理事务
A199: 机关服务
A200: 事业运行
... 1132 more rows

Sheet J05
A1: 2024年涧西区一般公共预算本级基本支出决算表
C2: 05表
C3: 单位:万元
A4: 科目编码 | B4: 科目名称 | C4: 一般公共预算基本支出
B6: 一般公共预算支出 | C6: =SUM(C7,C12,C23,C31,C38,C42,C45,C49,C54,C60,C64,C69,C72) -> 130,503
A7: 501 | B7: 机关工资福利支出 | C7: =SUM(C8:C11) -> 29,691
A8: 50101 | B8: 工资奖金津补贴 | C8: 20,546
A9: 50102 | B9: 社会保障缴费 | C9: 5,010
A10: 50103 | B10: 住房公积金 | C10: 2,353
A11: 50199 | B11: 其他工资福利支出 | C11: 1,782
A12: 502 | B12: 机关商品和服务支出 | C12: =SUM(C13:C22) -> 2,293
A13: 50201 | B13: 办公经费 | C13: 2,108
A14: 50202 | B14: 会议费 | C14: 2
A15: 50203 | B15: 培训费 | C15: 1
A16: 50204 | B16: 专用材料购置费
A17: 50205 | B17: 委托业务费 | C17: 59
A18: 50206 | B18: 公务接待费 | C18: 2
A19: 50207 | B19: 因公出国(境)费用
A20: 50208 | B20: 公务用车运行维护费 | C20: 66
A21: 50209 | B21: 维修(护)费 | C21: 25
A22: 50299 | B22: 其他商品和服务支出 | C22: 30
A23: 503 | B23: 机关资本性支出 | C23: =SUM(C24:C30) -> 33
A24: 50301 | B24: 房屋建筑物购建
A25: 50302 | B25: 基础设施建设
A26: 50303 | B26: 公务用车购置
A27: 50305 | B27: 土地征迁补偿和安置支出
A28: 50306 | B28: 设备购置 | C28: 33
A29: 50307 | B29: 大型修缮
A30: 50399 | B30: 其他资本性支出
A31: 504 | B31: 机关资本性支出(基本建设) | C31: =SUM(C32:C37) -> 0
A32: 50401 | B32: 房屋建筑物购建
A33: 50402 | B33: 基础设施建设
A34: 50403 | B34: 公务用车购置
A35: 50404 | B35: 设备购置
A36: 50405 | B36: 大型修缮
A37: 50499 | B37: 其他资本性支出
A38: 505 | B38: 对事业单位经常性补助 | C38: =SUM(C39:C41) -> 79,364
A39: 50501 | B39: 工资福利支出 | C39: 78,111
A40: 50502 | B40: 商品和服务支出 | C40: 1,253
A41: 50599 | B41: 其他对事业单位补助
A42: 506 | B42: 对事业单位资本性补助 | C42: =SUM(C43:C44) -> 6
A43: 50601 | B43: 资本性支出 | C43: 6
A44: 50602 | B44: 资本性支出(基本建设)
A45: 507 | B45: 对企业补助 | C45: =SUM(C46:C48) -> 0
A46: 50701 | B46: 费用补贴
A47: 50702 | B47: 利息补贴
A48: 50799 | B48: 其他对企业补助
A49: 508 | B49: 对企业资本性支出 | C49: =SUM(C50:C53) -> 0
A50: 50803 | B50: 资本金注入
A51: 50804 | B51: 资本金注入(基本建设)
A52: 50805 | B52: 政府投资基金股权投资
A53: 50899 | B53: 其他对企业资本性支出
A54: 509 | B54: 对个人和家庭的补助 | C54: =SUM(C55:C59) -> 19,116
A55: 50901 | B55: 社会福利和救助
A56: 50902 | B56: 助学金
A57: 50903 | B57: 个人农业生产补贴
A58: 50905 | B58: 离退休费 | C58: 19,037
A59: 50999 | B59: 其他对个人和家庭的补助 | C59: 79
A60: 510 | B60: 对社会保障基金补助 | C60: =SUM(C61:C63) -> 0
A61: 51002 | B61: 对社会保险基金补助
A62: 51003 | B62: 补充全国社会保障基金
A63: 51004 | B63: 对机关事业单位职业年金的补助
A64: 511 | B64: 债务利息及费用支出 | C64: =SUM(C65:C68) -> 0
A65: 51101 | B65: 国内债务付息
A66: 51102 | B66: 国外债务付息
A67: 51103 | B67: 国内债务发行费用
A68: 51104 | B68: 国外债务发行费用
A69: 514 | B69: 预备费及预留 | C69: =SUM(C70:C71) -> 0
A70: 51401 | B70: 预备费
A71: 51402 | B71: 预留
A72: 599 | B72: 其他支出 | C72: =SUM(C73:C77) -> 0
A73: 59907 | B73: 国家赔偿费用支出
A74: 59908 | B74: 对民间非营利组织和群众性自治组织补贴
A75: 59909 | B75: 经常性赠与
A76: 59910 | B76: 资本性赠与
A77: 59999 | B77: 其他支出

Sheet J06
A1: 2024年度涧西区一般公共预算税收返还和转移支付决算表
A2: 06表
A3: 单位:万元
A4: 预算科目 | B4: 决算数 | C4: 预算科目 | D4: 决算数
A5: 上级补助收入 | B5: =SUM(B6,B13,B49) -> 150,894 | C5: 教育 | D5: 2,106 | F5: 0.1
A6: 返还性收入 | B6: =SUM(B7:B12) -> 10,532 | C6: 科学技术 | D6: 1,443 | F6: 0.2
A7: 所得税基数返还收入 | B7: 2,514 | C7: 文化旅游体育与传媒 | D7: 59 | F7: 0.3
A8: 成品油税费改革税收返还收入 | B8: 47 | C8: 社会保障和就业 | D8: 2,326 | F8: 0.4
A9: 增值税税收返还收入 | B9: 2,603 | C9: 卫生健康 | D9: 3,406 | F9: 0.5
A10: 消费税税收返还收入 | B10: 696 | C10: 节能环保 | D10: 72 | F10: 0.6
A11: 增值税“五五分享”税收返还收入 | B11: 4,672 | C11: 城乡社区 | D11: 18,406 | F11: 0.7
A12: 其他返还性收入 | C12: 农林水 | D12: 563 | F12: 0.8
A13: 一般性转移支付收入 | B13: =SUM(B14:B48) -> 108,803 | C13: 交通运输 | D13: 613 | F13: 0.9
A14: 体制补助收入 | C14: 资源勘探工业信息等 | D14: 199 | F14: 0.10
A15: 均衡性转移支付收入 | B15: 17,079 | C15: 商业服务业等 | D15: 1,936 | F15: 0.11
A16: 县级基本财力保障机制奖补资金收入 | B16: 1,904 | C16: 金融 | F16: 0.12
A17: 结算补助收入 | B17: 2,060 | C17: 自然资源海洋气象等 | F17: 0.13
A18: 资源枯竭型城市转移支付补助收入 | C18: 住房保障 | F18: 0.14
A19: 企业事业单位划转补助收入 | C19: 粮油物资储备 | F19: 0.15
A20: 产粮(油)大县奖励资金收入 | C20: 灾害防治及应急管理 | D20: 8 | F20: 0.16
A21: 重点生态功能区转移支付收入 | C21: 其他收入 | F21: 0.17
A22: 固定数额补助收入 | B22: 51,544 | C22: 调入资金 | D22: =SUM(D23:D25) -> 31,367 | F22: 0.18
A23: 革命老区转移支付收入 | C23: 从政府性基金预算调入 | D23: 4,846 | F23: 0.19
A24: 民族地区转移支付收入 | C24: 从国有资本经营预算调入 | D24: 6,521 | F24: 0.20
A25: 边境地区转移支付收入 | C25: 从其他资金调入 | D25: 20,000 | F25: 0.21
A26: 巩固脱贫攻坚成果衔接乡村振兴转移支付收入 | B26: 583 | C26: 债务收入 | F26: 0.22
A27: 一般公共服务共同财政事权转移支付收入 | C27: 债务转贷收入 | D27: =D28 -> 17,200 | F27: 0.23
A28: 外交共同财政事权转移支付收入 | C28: 地方政府一般债务转贷收入 | D28: =SUM(D29:D32) -> 17,200 | F28: 0.24
A29: 国防共同财政事权转移支付收入 | C29: 地方政府一般债券转贷收入 | D29: 17,200 | F29: 0.25
A30: 公共安全共同财政事权转移支付收入 | B30: 203 | C30: 地方政府向外国政府借款转贷收入 | F30: 0.26
A31: 教育共同财政事权转移支付收入 | B31: 8,885 | C31: 地方政府向国际组织借款转贷收入 | F31: 0.27
A32: 科学技术共同财政事权转移支付收入 | C32: 地方政府其他一般债务转贷收入 | F32: 0.28
A33: 文化旅游体育与传媒共同财政事权转移支付收入 | B33: 96 | F33: 0.29
A34: 社会保障和就业共同财政事权转移支付收入 | B34: 6,905 | F34: 0.30
A35: 医疗卫生共同财政事权转移支付收入 | B35: 8,323 | F35: 0.31
A36: 节能环保共同财政事权转移支付收入 | B36: 286 | C36: 上解上级支出 | D36: =SUM(D37:D38) -> 119,271 | F36: 0.32
A37: 城乡社区共同财政事权转移支付收入 | C37: 体制上解支出 | D37: -41,412 | F37: 0.33
A38: 农林水共同财政事权转移支付收入 | B38: 1,356 | C38: 专项上解支出 | D38: 160,683 | F38: 0.34
A39: 交通运输共同财政事权转移支付收入 | B39: 300 | F39: 0.35
A40: 资源勘探工业信息等共同财政事权转移支付收入 | F40: 0.36
A41: 商业服务业等共同财政事权转移支付收入 | C41: 调出资金 | D41: =SUM(D42:D44) -> 11,212 | F41: 0.37
A42: 金融共同财政事权转移支付收入 | C42: 调出用于补充超长期特别国债偿债备付金的资金 | F42: 0.38
A43: 自然资源海洋气象等共同财政事权转移支付收入 | C43: 调出用于偿还超长期特别国债本金的资金 | F43: 0.39
A44: 住房保障共同财政事权转移支付收入 | B44: 9,272 | C44: 其他调出资金 | D44: 11,212 | F44: 0.40
A45: 粮油物资储备共同财政事权转移支付收入 | C45: 债务还本支出 | D45: =D46 -> 15,325 | F45: 0.41
A46: 灾害防治及应急管理共同财政事权转移支付收入 | B46: 7 | C46: 地方政府一般债务还本支出 | D46: =SUM(D47:D50) -> 15,325 | F46: 0.42
A47: 其他共同财政事权转移支付收入 | C47: 地方政府一般债券还本支出 | D47: 15,325
A48: 其他一般性转移支付收入 | C48: 地方政府向外国政府借款还本支出
A49: 专项转移支付收入 | B49: =SUM(B50:B53)+D5+D6+D7+D8+D9+D10+D11+D12+D13+D14+D15+D16+D17+D18+D19+D20++D21 -> 31,559 | C49: 地方政府向国际组织借款还本支出
A50: 一般公共服务 | B50: 367 | C50: 地方政府其他一般债务还本支出
A51: 外交 | D51: 0
A52: 国防 | B52: 40
A53: 公共安全 | B53: 15

Sheet J07
A1: 2024年度涧西区政府性基金预算收入决算表
A2: 07表
A3: 单位:万元
A4: 预算科目 | B4: 决算数
A5: 政府性基金收入 | B5: =SUM(B6,B9:B16,B22:B23,B26:B29,B32:B34,B37:B41,B44:B45,B53:B56) -> 14,104
A6: 农网还贷资金收入 | B6: =SUM(B7:B8) -> 0
A7: 中央农网还贷资金收入
A8: 地方农网还贷资金收入
A9: 铁路建设基金收入
A10: 民航发展基金收入
A11: 海南省高等级公路车辆通行附加费收入
A12: 旅游发展基金收入
A13: 国家电影事业发展专项资金收入
A14: 国有土地收益基金收入
A15: 农业土地开发资金收入
A16: 国有土地使用权出让收入 | B16: =SUM(B17:B21) -> 0
A17: 土地出让价款收入
A18: 补缴的土地价款
A19: 划拨土地收入
A20: 缴纳新增建设用地土地有偿使用费
A21: 其他土地出让收入
A22: 大中型水库移民后期扶持基金收入
A23: 大中型水库库区基金收入 | B23: =SUM(B24:B25) -> 0
A24: 中央大中型水库库区基金收入
A25: 地方大中型水库库区基金收入
A26: 三峡水库库区基金收入
A27: 中央特别国债经营基金收入
A28: 中央特别国债经营基金财务收入
A29: 彩票公益金收入 | B29: =SUM(B30:B31) -> 0
A30: 福利彩票公益金收入
A31: 体育彩票公益金收入
A32: 城市基础设施配套费收入 | B32: 14,104
A33: 小型水库移民扶助基金收入
A34: 国家重大水利工程建设基金收入 | B34: =SUM(B35:B36) -> 0
A35: 中央重大水利工程建设资金
A36: 地方重大水利工程建设资金
A37: 车辆通行费
A38: 核电站乏燃料处理处置基金收入
A39: 可再生能源电价附加收入
A40: 船舶油污损害赔偿基金收入
A41: 废弃电器电子产品处理基金收入 | B41: =SUM(B42:B43) -> 0
A42: 税务部门征收的废弃电器电子产品处理基金收入
A43: 海关征收的废弃电器电子产品处理基金收入
A44: 污水处理费收入
A45: 彩票发行机构和彩票销售机构的业务费用 | B45: =SUM(B46:B52) -> 0
A46: 福利彩票发行机构的业务费用
A47: 体育彩票发行机构的业务费用
A48: 福利彩票销售机构的业务费用
A49: 体育彩票销售机构的业务费用
A50: 彩票兑奖周转金
A51: 彩票发行销售风险基金
A52: 彩票市场调控资金收入
A53: 抗疫特别国债财务基金收入
A54: 耕地保护考核奖惩基金收入
A55: 超长期特别国债财务基金收入
A56: 其他政府性基金收入
A57: 专项债务对应项目专项收入 | B57: =SUM(B58:B60,B64:B69,B72:B73) -> 0
A58: 海南省高等级公路车辆通行附加费专项债务对应项目专项收入
A59: 国家电影事业发展专项资金专项债务对应项目专项收入
A60: 国有土地使用权出让金专项债务对应项目专项收入 | B60: =SUM(B61:B63) -> 0
A61: 土地储备专项债券对应项目专项收入
A62: 棚户区改造专项债券对应项目专项收入
A63: 其他国有土地使用权出让金专项债务对应项目专项收入
A64: 农业土地开发资金专项债务对应项目专项收入
A65: 大中型水库库区基金专项债务对应项目专项收入
A66: 城市基础设施配套费专项债务对应项目专项收入
A67: 小型水库移民扶助基金专项债务对应项目专项收入
A68: 国家重大水利工程建设基金专项债务对应项目专项收入
A69: 车辆通行费专项债务对应项目专项收入 | B69: =SUM(B70:B71) -> 0
A70: 政府收费公路专项债券对应项目专项收入
A71: 其他车辆通行费专项债务对应项目专项收入
A72: 污水处理费专项债务对应项目专项收入
A73: 其他政府性基金专项债务对应项目专项收入 | B73: =SUM(B74:B75) -> 0
A74: 其他地方自行试点项目收益专项债券对应项目专项收入
A75: 其他政府性基金专项债务对应项目专项收入

Sheet J08
A1: 2024年度涧西区政府性基金预算支出决算表
A2: 08表
A3: 单位:万元
A4: 预算科目 | B4: 决算数
A5: 政府性基金预算支出 | B5: =SUM(B6,B13,B28,B44,B49,B56,B72,B133,B172,B222,B232,B236,B240,B244,B248,B253,B285,B302,B319) -> 449,404
A6: 教育支出 | B6: =B7 -> 0
A7: 超长期特别国债安排的支出 | B7: =SUM(B8:B12) -> 0
A8: 基础教育
A9: 高等教育
A10: 职业教育
A11: 特殊教育
A12: 其他教育支出
A13: 科学技术支出 | B13: =B14+B21 -> 0
A14: 核电站乏燃料处理处置基金支出 | B14: =SUM(B15:B20) -> 0
A15: 乏燃料运输
A16: 乏燃料离堆贮存
A17: 乏燃料后处理
A18: 高放废物的处理处置
A19: 乏燃料后处理厂的建设、运行、改造和退役
A20: 其他乏燃料处理处置基金支出
A21: 超长期特别国债安排的支出 | B21: =SUM(B22:B27) -> 0
A22: 基础研究
A23: 应用研究
A24: 技术研究与开发
A25: 科技条件与服务
A26: 科技重大项目
A27: 其他科技支出
A28: 文化旅游体育与传媒支出 | B28: =SUM(B29,B35,B41) -> 0
A29: 国家电影事业发展专项资金安排的支出 | B29: =SUM(B30:B34) -> 0
A30: 资助国产影片放映
A31: 资助影院建设
A32: 资助少数民族语电影译制
A33: 购买农村电影公益性放映版权服务
A34: 其他国家电影事业发展专项资金支出
A35: 旅游发展基金支出 | B35: =SUM(B36:B40) -> 0
A36: 宣传促销
A37: 行业规划
A38: 旅游事业补助
A39: 地方旅游开发项目补助
A40: 其他旅游发展基金支出
A41: 国家电影事业发展专项资金对应专项债务收入安排的支出 | B41: =SUM(B42:B43) -> 0
A42: 资助城市影院
A43: 其他国家电影事业发展专项资金对应专项债务收入支出
A44: 社会保障和就业支出 | B44: =B45 -> 0
A45: 超长期特别国债安排的支出 | B45: =SUM(B46:B48) -> 0
A46: 养老机构及服务设施
A47: 公共就业服务设施
A48: 其他社会保障和就业支出
A49: 卫生健康支出 | B49: =B50 -> 0
A50: 超长期特别国债安排的支出 | B50: =SUM(B51:B55) -> 0
A51: 公立医院
A52: 基层医疗卫生机构
A53: 公共卫生机构
A54: 托育机构
A55: 其他卫生健康支出
A56: 节能环保支出 | B56: =SUM(B57,B62,B67) -> 0
A57: 可再生能源电价附加收入安排的支出 | B57: =SUM(B58:B61) -> 0
A58: 风力发电补助
A59: 太阳能发电补助
A60: 生物质能发电补助
A61: 其他可再生能源电价附加收入安排的支出
A62: 废弃电器电子产品处理基金支出 | B62: =SUM(B63:B66) -> 0
A63: 回收处理费用补贴
A64: 信息系统建设
A65: 基金征管经费
A66: 其他废弃电器电子产品处理基金支出
A67: 超长期特别国债安排的支出 | B67: =SUM(B68:B71) -> 0
A68: 水污染综合治理
A69: 应对气候变化
A70: “三北”工程建设
A71: 其他节能环保支出
A72: 城乡社区支出 | B72: =SUM(B73,B89,B93:B94,B100,B104,B108,B112,B118,B121,B130) -> 182,268
A73: 国有土地使用权出让收入安排的支出 | B73: =SUM(B74:B88) -> 148,526
A74: 征地和拆迁补偿支出 | B74: 145,407
A75: 土地开发支出
A76: 城市建设支出
A77: 农村基础设施建设支出
A78: 补助被征地农民支出
A79: 土地出让业务支出
A80: 廉租住房支出
A81: 支付破产或改制企业职工安置费
A82: 棚户区改造支出
A83: 公共租赁住房支出
A84: 保障性住房租金补贴
A85: 农业生产发展支出
A86: 农村社会事业支出
A87: 农业农村生态环境支出
A88: 其他国有土地使用权出让收入安排的支出 | B88: 3,119
A89: 国有土地收益基金安排的支出 | B89: =SUM(B90:B92) -> 0
A90: 征地和拆迁补偿支出
A91: 土地开发支出
A92: 其他国有土地收益基金支出
A93: 农业土地开发资金安排的支出
A94: 城市基础设施配套费安排的支出 | B94: =SUM(B95:B99) -> 15,063
A95: 城市公共设施 | B95: 1,959
A96: 城市环境卫生
A97: 公有房屋
A98: 城市防洪
A99: 其他城市基础设施配套费安排的支出 | B99: 13,104
A100: 污水处理费安排的支出 | B100: =SUM(B101:B103) -> 0
A101: 污水处理设施建设和运营
A102: 代征手续费
A103: 其他污水处理费安排的支出
A104: 土地储备专项债券收入安排的支出 | B104: =SUM(B105:B107) -> 0
A105: 征地和拆迁补偿支出
A106: 土地开发支出
A107: 其他土地储备专项债券收入安排的支出
A108: 棚户区改造专项债券收入安排的支出 | B108: =SUM(B109:B111) -> 12,600
A109: 征地和拆迁补偿支出
A110: 土地开发支出
A111: 其他棚户区改造专项债券收入安排的支出 | B111: 12,600
A112: 城市基础设施配套费对应专项债务收入安排的支出 | B112: =SUM(B113:B117) -> 0
A113: 城市公共设施
A114: 城市环境卫生
A115: 公有房屋
A116: 城市防洪
A117: 其他城市基础设施配套费对应专项债务收入安排的支出
A118: 污水处理费对应专项债务收入安排的支出 | B118: =SUM(B119:B120) -> 0
A119: 污水处理设施建设和运营
A120: 其他污水处理费对应专项债务收入安排的支出
A121: 国有土地使用权出让收入对应专项债务收入安排的支出 | B121: =SUM(B122:B129) -> 6,079
A122: 征地和拆迁补偿支出
A123: 土地开发支出
A124: 城市建设支出
A125: 农村基础设施建设支出
A126: 廉租住房支出
A127: 棚户区改造支出
A128: 公共租赁住房支出
A129: 其他国有土地使用权出让收入对应专项债务收入安排的支出 | B129: 6,079
A130: 超长期特别国债安排的支出 | B130: =SUM(B131:B132) -> 0
A131: 城乡社区公共设施
A132: 其他城乡社区支出
A133: 农林水支出 | B133: =SUM(B134,B139,B144,B149,B152,B157,B161,B165,B168) -> 8
A134: 大中型水库库区基金安排的支出 | B134: =SUM(B135:B138) -> 0
A135: 基础设施建设和经济发展
A136: 解决移民遗留问题
A137: 库区防护工程维护
A138: 其他大中型水库库区基金支出
A139: 三峡水库库区基金支出 | B139: =SUM(B140:B143) -> 0
A140: 基础设施建设和经济发展
A141: 解决移民遗留问题
A142: 库区维护和管理
A143: 其他三峡水库库区基金支出
A144: 国家重大水利工程建设基金安排的支出 | B144: =SUM(B145:B148) -> 0
A145: 南水北调工程建设
A146: 三峡后续工作
A147: 地方重大水利工程建设
A148: 其他重大水利工程建设基金支出
A149: 大中型水库库区基金对应专项债务收入安排的支出 | B149: =SUM(B150:B151) -> 0
A150: 基础设施建设和经济发展
A151: 其他大中型水库库区基金对应专项债务收入支出
A152: 国家重大水利工程建设基金对应专项债务收入安排的支出 | B152: =SUM(B153:B156) -> 0
A153: 南水北调工程建设
A154: 三峡工程后续工作
A155: 地方重大水利工程建设
A156: 其他重大水利工程建设基金对应专项债务收入支出
A157: 大中型水库移民后期扶持基金支出 | B157: =SUM(B158:B160) -> 8
A158: 移民补助 | B158: 8
A159: 基础设施建设和经济发展
A160: 其他大中型水库移民后期扶持基金支出
A161: 小型水库移民扶助基金安排的支出 | B161: =SUM(B162:B164) -> 0
A162: 移民补助
A163: 基础设施建设和经济发展
A164: 其他小型水库移民扶助基金支出
A165: 小型水库移民扶助基金对应专项债务收入安排的支出 | B165: =SUM(B166:B167) -> 0
A166: 基础设施建设和经济发展
A167: 其他小型水库移民扶助基金对应专项债务收入安排的支出
A168: 超长期特别国债安排的支出 | B168: =SUM(B169:B171) -> 0
A169: 农业农村支出
A170: 水利支出
A171: 其他农林水支出
A172: 交通运输支出 | B172: =SUM(B173,B178,B183,B192,B199,B209,B212,B215,B216) -> 0
A173: 海南省高等级公路车辆通行附加费安排的支出 | B173: =SUM(B174:B177) -> 0
A174: 公路建设
A175: 公路养护
A176: 公路还贷
A177: 其他海南省高等级公路车辆通行附加费安排的支出
A178: 车辆通行费安排的支出 | B178: =SUM(B179:B182) -> 0
A179: 公路还贷
A180: 政府还贷公路养护
A181: 政府还贷公路管理
A182: 其他车辆通行费安排的支出
A183: 铁路建设基金支出 | B183: =SUM(B184:B191) -> 0
A184: 铁路建设投资
A185: 购置铁路机车车辆
A186: 铁路还贷
A187: 建设项目铺底资金
A188: 勘测设计
A189: 注册资本金
A190: 周转资金
A191: 其他铁路建设基金支出
A192: 船舶油污损害赔偿基金支出 | B192: =SUM(B193:B198) -> 0
A193: 应急处置费用
A194: 控制清除污染
A195: 损失补偿
A196: 生态恢复
A197: 监视监测
A198: 其他船舶油污损害赔偿基金支出
A199: 民航发展基金支出 | B199: =SUM(B200:B208) -> 0
A200: 民航机场建设
... 139 more rows

Sheet J09
A1: 2024年度涧西区政府性基金预算本级支出决算表
A2: 09表
A3: 单位:万元
A4: 预算科目 | B4: 决算数
A5: 政府性基金预算支出 | B5: =SUM(B6,B13,B28,B44,B49,B56,B72,B133,B172,B222,B232,B236,B240,B244,B248,B253,B285,B302,B319) -> 309,679
A6: 教育支出 | B6: =B7 -> 0
A7: 超长期特别国债安排的支出 | B7: =SUM(B8:B12) -> 0
A8: 基础教育
A9: 高等教育
A10: 职业教育
A11: 特殊教育
A12: 其他教育支出
A13: 科学技术支出 | B13: =B14+B21 -> 0
A14: 核电站乏燃料处理处置基金支出 | B14: =SUM(B15:B20) -> 0
A15: 乏燃料运输
A16: 乏燃料离堆贮存
A17: 乏燃料后处理
A18: 高放废物的处理处置
A19: 乏燃料后处理厂的建设、运行、改造和退役
A20: 其他乏燃料处理处置基金支出
A21: 超长期特别国债安排的支出 | B21: =SUM(B22:B27) -> 0
A22: 基础研究
A23: 应用研究
A24: 技术研究与开发
A25: 科技条件与服务
A26: 科技重大项目
A27: 其他科技支出
A28: 文化旅游体育与传媒支出 | B28: =SUM(B29,B35,B41) -> 0
A29: 国家电影事业发展专项资金安排的支出 | B29: =SUM(B30:B34) -> 0
A30: 资助国产影片放映
A31: 资助影院建设
A32: 资助少数民族语电影译制
A33: 购买农村电影公益性放映版权服务
A34: 其他国家电影事业发展专项资金支出
A35: 旅游发展基金支出 | B35: =SUM(B36:B40) -> 0
A36: 宣传促销
A37: 行业规划
A38: 旅游事业补助
A39: 地方旅游开发项目补助
A40: 其他旅游发展基金支出
A41: 国家电影事业发展专项资金对应专项债务收入安排的支出 | B41: =SUM(B42:B43) -> 0
A42: 资助城市影院
A43: 其他国家电影事业发展专项资金对应专项债务收入支出
A44: 社会保障和就业支出 | B44: =B45 -> 0
A45: 超长期特别国债安排的支出 | B45: =SUM(B46:B48) -> 0
A46: 养老机构及服务设施
A47: 公共就业服务设施
A48: 其他社会保障和就业支出
A49: 卫生健康支出 | B49: =B50 -> 0
A50: 超长期特别国债安排的支出 | B50: =SUM(B51:B55) -> 0
A51: 公立医院
A52: 基层医疗卫生机构
A53: 公共卫生机构
A54: 托育机构
A55: 其他卫生健康支出
A56: 节能环保支出 | B56: =SUM(B57,B62,B67) -> 0
A57: 可再生能源电价附加收入安排的支出 | B57: =SUM(B58:B61) -> 0
A58: 风力发电补助
A59: 太阳能发电补助
A60: 生物质能发电补助
A61: 其他可再生能源电价附加收入安排的支出
A62: 废弃电器电子产品处理基金支出 | B62: =SUM(B63:B66) -> 0
A63: 回收处理费用补贴
A64: 信息系统建设
A65: 基金征管经费
A66: 其他废弃电器电子产品处理基金支出
A67: 超长期特别国债安排的支出 | B67: =SUM(B68:B71) -> 0
A68: 水污染综合治理
A69: 应对气候变化
A70: “三北”工程建设
A71: 其他节能环保支出
A72: 城乡社区支出 | B72: =SUM(B73,B89,B93:B94,B100,B104,B108,B112,B118,B121,B130) -> 60,168
A73: 国有土地使用权出让收入安排的支出 | B73: =SUM(B74:B88) -> 55,868
A74: 征地和拆迁补偿支出 | B74: 52,993
A75: 土地开发支出
A76: 城市建设支出
A77: 农村基础设施建设支出
A78: 补助被征地农民支出
A79: 土地出让业务支出
A80: 廉租住房支出
A81: 支付破产或改制企业职工安置费
A82: 棚户区改造支出
A83: 公共租赁住房支出
A84: 保障性住房租金补贴
A85: 农业生产发展支出
A86: 农村社会事业支出
A87: 农业农村生态环境支出
A88: 其他国有土地使用权出让收入安排的支出 | B88: 2,875
A89: 国有土地收益基金安排的支出 | B89: =SUM(B90:B92) -> 0
A90: 征地和拆迁补偿支出
A91: 土地开发支出
A92: 其他国有土地收益基金支出
A93: 农业土地开发资金安排的支出
A94: 城市基础设施配套费安排的支出 | B94: =SUM(B95:B99) -> 0
A95: 城市公共设施
A96: 城市环境卫生
A97: 公有房屋
A98: 城市防洪
A99: 其他城市基础设施配套费安排的支出
A100: 污水处理费安排的支出 | B100: =SUM(B101:B103) -> 0
A101: 污水处理设施建设和运营
A102: 代征手续费
A103: 其他污水处理费安排的支出
A104: 土地储备专项债券收入安排的支出 | B104: =SUM(B105:B107) -> 0
A105: 征地和拆迁补偿支出
A106: 土地开发支出
A107: 其他土地储备专项债券收入安排的支出
A108: 棚户区改造专项债券收入安排的支出 | B108: =SUM(B109:B111) -> 0
A109: 征地和拆迁补偿支出
A110: 土地开发支出
A111: 其他棚户区改造专项债券收入安排的支出
A112: 城市基础设施配套费对应专项债务收入安排的支出 | B112: =SUM(B113:B117) -> 0
A113: 城市公共设施
A114: 城市环境卫生
A115: 公有房屋
A116: 城市防洪
A117: 其他城市基础设施配套费对应专项债务收入安排的支出
A118: 污水处理费对应专项债务收入安排的支出 | B118: =SUM(B119:B120) -> 0
A119: 污水处理设施建设和运营
A120: 其他污水处理费对应专项债务收入安排的支出
A121: 国有土地使用权出让收入对应专项债务收入安排的支出 | B121: =SUM(B122:B129) -> 4,300
A122: 征地和拆迁补偿支出
A123: 土地开发支出
A124: 城市建设支出
A125: 农村基础设施建设支出
A126: 廉租住房支出
A127: 棚户区改造支出
A128: 公共租赁住房支出
A129: 其他国有土地使用权出让收入对应专项债务收入安排的支出 | B129: 4,300
A130: 超长期特别国债安排的支出 | B130: =SUM(B131:B132) -> 0
A131: 城乡社区公共设施
A132: 其他城乡社区支出
A133: 农林水支出 | B133: =SUM(B134,B139,B144,B149,B152,B157,B161,B165,B168) -> 8
A134: 大中型水库库区基金安排的支出 | B134: =SUM(B135:B138) -> 0
A135: 基础设施建设和经济发展
A136: 解决移民遗留问题
A137: 库区防护工程维护
A138: 其他大中型水库库区基金支出
A139: 三峡水库库区基金支出 | B139: =SUM(B140:B143) -> 0
A140: 基础设施建设和经济发展
A141: 解决移民遗留问题
A142: 库区维护和管理
A143: 其他三峡水库库区基金支出
A144: 国家重大水利工程建设基金安排的支出 | B144: =SUM(B145:B148) -> 0
A145: 南水北调工程建设
A146: 三峡后续工作
A147: 地方重大水利工程建设
A148: 其他重大水利工程建设基金支出
A149: 大中型水库库区基金对应专项债务收入安排的支出 | B149: =SUM(B150:B151) -> 0
A150: 基础设施建设和经济发展
A151: 其他大中型水库库区基金对应专项债务收入支出
A152: 国家重大水利工程建设基金对应专项债务收入安排的支出 | B152: =SUM(B153:B156) -> 0
A153: 南水北调工程建设
A154: 三峡工程后续工作
A155: 地方重大水利工程建设
A156: 其他重大水利工程建设基金对应专项债务收入支出
A157: 大中型水库移民后期扶持基金支出 | B157: =SUM(B158:B160) -> 8
A158: 移民补助 | B158: 8
A159: 基础设施建设和经济发展
A160: 其他大中型水库移民后期扶持基金支出
A161: 小型水库移民扶助基金安排的支出 | B161: =SUM(B162:B164) -> 0
A162: 移民补助
A163: 基础设施建设和经济发展
A164: 其他小型水库移民扶助基金支出
A165: 小型水库移民扶助基金对应专项债务收入安排的支出 | B165: =SUM(B166:B167) -> 0
A166: 基础设施建设和经济发展
A167: 其他小型水库移民扶助基金对应专项债务收入安排的支出
A168: 超长期特别国债安排的支出 | B168: =SUM(B169:B171) -> 0
A169: 农业农村支出
A170: 水利支出
A171: 其他农林水支出
A172: 交通运输支出 | B172: =SUM(B173,B178,B183,B192,B199,B209,B212,B215,B216) -> 0
A173: 海南省高等级公路车辆通行附加费安排的支出 | B173: =SUM(B174:B177) -> 0
A174: 公路建设
A175: 公路养护
A176: 公路还贷
A177: 其他海南省高等级公路车辆通行附加费安排的支出
A178: 车辆通行费安排的支出 | B178: =SUM(B179:B182) -> 0
A179: 公路还贷
A180: 政府还贷公路养护
A181: 政府还贷公路管理
A182: 其他车辆通行费安排的支出
A183: 铁路建设基金支出 | B183: =SUM(B184:B191) -> 0
A184: 铁路建设投资
A185: 购置铁路机车车辆
A186: 铁路还贷
A187: 建设项目铺底资金
A188: 勘测设计
A189: 注册资本金
A190: 周转资金
A191: 其他铁路建设基金支出
A192: 船舶油污损害赔偿基金支出 | B192: =SUM(B193:B198) -> 0
A193: 应急处置费用
A194: 控制清除污染
A195: 损失补偿
A196: 生态恢复
A197: 监视监测
A198: 其他船舶油污损害赔偿基金支出
A199: 民航发展基金支出 | B199: =SUM(B200:B208) -> 0
A200: 民航机场建设
... 139 more rows

Sheet J10
A1: 2024年度涧西区政府性基金转移支付决算表
A2: 10表
A3: 单位:万元
A4: 预算科目 | B4: 决算数
A5: 政府性基金预算上级补助收入 | B5: =B6 -> 163,934
A6: 政府性基金转移支付收入 | B6: =SUM(B7:B17) -> 163,934
A7: 科学技术
A8: 文化旅游体育与传媒 | B8: 11
A9: 社会保障和就业
A10: 节能环保
A11: 城乡社区 | B11: 156,572
A12: 农林水 | B12: 8
A13: 交通运输
A14: 资源勘探工业信息等
A15: 自然资源海洋气象等
A16: 超长期特别国债转移支付收入 | B16: 6,403
A17: 其他收入 | B17: 940
A18: 政府性基金预算下级上解收入 | B18: =SUM(B19:B21) -> 0
A19: 抗疫特别国债还本上解收入
A20: 超长期特别国债还本上解收入
A21: 其他政府性基金上解收入
A22: 待偿债再融资专项债券上年结余
A23: 政府性基金预算上年结余收入 | B23: 21,136
A24: 政府性基金预算调入资金 | B24: =B26 -> 11,212
A25: 中央单位特殊上缴利润专项收入
A26: 其他调入政府性基金预算资金 | B26: 11,212
A27: 债务收入 | B27: =B30 -> 0
A28: 中央政府债务收入
A29: 超长期特别国债收入
A30: 地方政府债务收入 | B30: =B31 -> 0
A31: 专项债务收入
A32: 债务转贷收入 | B32: =B33 -> 374,124
A33: 地方政府专项债务转贷收入 | B33: 374,124
A34: 政府性基金预算省补助计划单列市收入
A35: 政府性基金预算计划单列市上解省收入
A36: 动用偿债备付金 | B36: =B37 -> 0
A37: 动用超长期特别国债偿债备付金
A40: 收 入 总 计 | B40: =SUM(B4,B5,B18,B22:B24,B27,B32,B34:B36) -> 570,406

Sheet J11
A1: 2024年度涧西区国有资本经营预算收入决算表
B2: 11表
B3: 单位:万元
A4: 预算科目 | B4: 决算数
A5: 利润收入 | B5: 0
A6: 石油石化企业利润收入 | B6: 0
A7: 电力企业利润收入 | B7: 0
A8: 电信企业利润收入 | B8: 0
A9: 煤炭企业利润收入 | B9: 0
A10: 有色冶金采掘企业利润收入 | B10: 0
A11: 钢铁企业利润收入 | B11: 0
A12: 化工企业利润收入 | B12: 0
A13: 运输企业利润收入 | B13: 0
A14: 电子企业利润收入 | B14: 0
A15: 机械企业利润收入 | B15: 0
A16: 投资服务企业利润收入 | B16: 0
A17: 纺织轻工企业利润收入 | B17: 0
A18: 贸易企业利润收入 | B18: 0
A19: 建筑施工企业利润收入 | B19: 0
A20: 房地产企业利润收入 | B20: 0
A21: 建材企业利润收入 | B21: 0
A22: 境外企业利润收入 | B22: 0
A23: 对外合作企业利润收入 | B23: 0
A24: 医药企业利润收入 | B24: 0
A25: 农林牧渔企业利润收入 | B25: 0
A26: 邮政企业利润收入 | B26: 0
A27: 军工企业利润收入 | B27: 0
A28: 转制科研院所利润收入 | B28: 0
A29: 地质勘查企业利润收入 | B29: 0
A30: 卫生体育福利企业利润收入 | B30: 0
A31: 教育文化广播企业利润收入 | B31: 0
A32: 科学研究企业利润收入 | B32: 0
A33: 机关社团所属企业利润收入 | B33: 0
A34: 金融企业利润收入 | B34: 0
A35: 其他国有资本经营预算企业利润收入 | B35: 0
A36: 股利、股息收入 | B36: 0
A37: 国有控股公司股利、股息收入 | B37: 0
A38: 国有参股公司股利、股息收入 | B38: 0
A39: 金融企业公司股利、股息收入 | B39: 0
A40: 其他国有资本经营预算企业股利、股息收入 | B40: 0
A41: 产权转让收入 | B41: 0
A42: 国有股权、股份转让收入 | B42: 0
A43: 国有独资企业产权转让收入 | B43: 0
A44: 金融企业产权转让收入 | B44: 0
A45: 其他国有资本经营预算企业产权转让收入 | B45: 0
A46: 清算收入 | B46: 0
A47: 国有股权、股份清算收入 | B47: 0
A48: 国有独资企业清算收入 | B48: 0
A49: 其他国有资本经营预算企业清算收入 | B49: 0
A50: 其他国有资本经营预算收入 | B50: 0
A55: 本 年 收 入 合 计 | B55: 0

Sheet J12
A1: 2024年度涧西区国有资本经营预算支出决算表
A2: 12表
A3: 单位:万元
A4: 预算科目 | B4: 决算数
A5: 解决历史遗留问题及改革成本支出 | B5: 2,530
A6: 厂办大集体改革支出 | B6: 0
A7: “三供一业”移交补助支出 | B7: 0
A8: 国有企业办职教幼教补助支出
A9: 国有企业办公共服务机构移交补助支出 | B9: 0
A10: 国有企业退休人员社会化管理补助支出 | B10: 2,530
A11: 国有企业棚户区改造支出 | B11: 0
A12: 国有企业改革成本支出 | B12: 0
A13: 离休干部医药费补助支出 | B13: 0
A14: 金融企业改革性支出 | B14: 0
A15: 其他解决历史遗留问题及改革成本支出 | B15: 0
A16: 国有企业资本金注入 | B16: 0
A17: 国有经济结构调整支出 | B17: 0
A18: 公益性设施投资支出 | B18: 0
A19: 前瞻性战略性产业发展支出 | B19: 0
A20: 生态环境保护支出 | B20: 0
A21: 支持科技进步支出 | B21: 0
A22: 保障国家经济安全支出 | B22: 0
A23: 金融企业资本性支出 | B23: 0
A24: 其他国有企业资本金注入 | B24: 0
A25: 国有企业政策性补贴(款) | B25: 0
A26: 国有企业政策性补贴(项) | B26: 0
A27: 其他国有资本经营预算支出(款) | B27: 5
A28: 其他国有资本经营预算支出(项) | B28: 5
A40: 本 年 支 出 合 计 | B40: 2,535

Sheet J13
A1: 2024年度涧西区国有资本经营预算本级支出决算表
A2: 13表
A3: 单位:万元
A4: 预算科目 | B4: 决算数
A5: 解决历史遗留问题及改革成本支出 | B5: 2,530
A6: 厂办大集体改革支出 | B6: 0
A7: “三供一业”移交补助支出 | B7: 0
A8: 国有企业办职教幼教补助支出
A9: 国有企业办公共服务机构移交补助支出 | B9: 0
A10: 国有企业退休人员社会化管理补助支出 | B10: 2,530
A11: 国有企业棚户区改造支出 | B11: 0
A12: 国有企业改革成本支出 | B12: 0
A13: 离休干部医药费补助支出 | B13: 0
A14: 金融企业改革性支出 | B14: 0
A15: 其他解决历史遗留问题及改革成本支出 | B15: 0
A16: 国有企业资本金注入 | B16: 0
A17: 国有经济结构调整支出 | B17: 0
A18: 公益性设施投资支出 | B18: 0
A19: 前瞻性战略性产业发展支出 | B19: 0
A20: 生态环境保护支出 | B20: 0
A21: 支持科技进步支出 | B21: 0
A22: 保障国家经济安全支出 | B22: 0
A23: 金融企业资本性支出 | B23: 0
A24: 其他国有企业资本金注入 | B24: 0
A25: 国有企业政策性补贴(款) | B25: 0
A26: 国有企业政策性补贴(项) | B26: 0
A27: 其他国有资本经营预算支出(款) | B27: 5
A28: 其他国有资本经营预算支出(项) | B28: 5
A40: 本 年 支 出 合 计 | B40: 2,535

Sheet J14
A1: 2024年度涧西区国有资本经营预算转移支付决算表
D2: 14表
A3: 单位:万元
A4: 预算科目 | B4: 决算数 | C4: 预算科目 | D4: 决算数
A5: 国有资本经营预算收入 | B5: ='[1]L14'!E5 -> 0 | C5: 国有资本经营预算支出 | D5: ='[1]L14'!J5 -> 2,535
A6: 国有资本经营预算上级补助收入 | B6: 2,453 | C6: 国有资本经营预算补助下级支出
A7: 国有资本经营预算下级上解收入 | C7: 国有资本经营预算上解上级支出
A8: 国有资本经营预算上年结余收入 | B8: 8,333 | C8: 国有资本经营预算调出资金 | D8: =SUM(D9:D10) -> 6,521
C9: 调出到一般公共预算资金 | D9: 6,521
C10: 调出到政府性基金预算资金
C13: 国有资本经营预算年终结余 | D13: =B14-SUM(D5:D8,D11:D12) -> 1,730
A14: 收 入 总 计 | B14: =SUM(B5:B8,B11:B12) -> 10,786 | C14: 支 出 总 计 | D14: =SUM(D5:D8,D11:D13) -> 10,786

Sheet J15
A1: 2024年度涧西区社会保险基金预算收入情况表
A2: 15表
A3: 单位:万元
A4: 项目 | B4: 合计 | C4: 企业职工基本养老保险基金 | D4: 城乡居民基本养老保险基金 | E4: 城乡居民基本医疗保险基金 | F4: 工伤保险基金 | G4: 失业保险基金
A6: 一、收入 | B6: 6,215 | C6: 0 | D6: 6,215 | E6: 0 | F6: 0 | G6: 0
A7: 其中:社会保险费收入 | B7: 1,114 | C7: 0 | D7: 1,114 | E7: 0 | F7: 0 | G7: 0
A8: 利息收入 | B8: 835 | C8: 0 | D8: 835 | E8: 0 | F8: 0 | G8: 0
A9: 财政补贴收入 | B9: 131 | C9: 0 | D9: 131 | E9: 0 | F9: 0 | G9: 0
A10: 委托投资收益 | B10: 445 | C10: 0 | D10: 445 | E10: 0 | F10: 0 | G10: 0
A11: 其他收入 | B11: 12 | C11: 0 | D11: 12 | E11: 0 | F11: 0 | G11: 0
A12: 转移收入 | C12: 0 | E12: 0 | F12: 0 | G12: 0
A13: 中央调剂资金收入 | C13: 0 | E13: 0 | F13: 0 | G13: 0
A14: 二、支出 | B14: 5,062 | C14: 0 | D14: 5,062 | E14: 0 | F14: 0 | G14: 0
A15: 其中:社会保险待遇支出 | B15: 5,048 | C15: 0 | D15: 5,048 | E15: 0 | F15: 0 | G15: 0
A16: 其他支出 | B16: 14 | C16: 0 | D16: 14 | E16: 0 | F16: 0 | G16: 0
A17: 转移支出 | C17: 0 | E17: 0 | F17: 0 | G17: 0
A18: 中央调剂资金支出 | C18: 0 | E18: 0 | F18: 0 | G18: 0
A19: 三、本年收支结余 | B19: =SUM(B6)-SUM(B14) -> 1,153 | C19: 0 | D19: =SUM(D6)-SUM(D14) -> 1,153 | E19: 0 | F19: 0 | G19: 0
A20: 四、年末滚存结余 | B20: 18,523 | C20: 0 | D20: 18,523 | E20: 0 | F20: 0 | G20: 0
A21: 注：涧西、高新专户汇总填报。

Sheet J16
A1: 2024年度涧西区社会保险基金预算支出情况表
A2: 16表
A3: 单位:万元
A4: 项目 | B4: 合计 | C4: 企业职工基本养老保险基金 | D4: 城乡居民基本养老保险基金 | E4: 城乡居民基本医疗保险基金 | F4: 工伤保险基金 | G4: 失业保险基金
A6: 一、收入 | B6: 6,215 | C6: 0 | D6: 6,215 | E6: 0 | F6: 0 | G6: 0
A7: 其中:社会保险费收入 | B7: 1,114 | C7: 0 | D7: 1,114 | E7: 0 | F7: 0 | G7: 0
A8: 利息收入 | B8: 835 | C8: 0 | D8: 835 | E8: 0 | F8: 0 | G8: 0
A9: 财政补贴收入 | B9: 131 | C9: 0 | D9: 131 | E9: 0 | F9: 0 | G9: 0
A10: 委托投资收益 | B10: 445 | C10: 0 | D10: 445 | E10: 0 | F10: 0 | G10: 0
A11: 其他收入 | B11: 12 | C11: 0 | D11: 12 | E11: 0 | F11: 0 | G11: 0
A12: 转移收入 | C12: 0 | E12: 0 | F12: 0 | G12: 0
A13: 中央调剂资金收入 | C13: 0 | E13: 0 | F13: 0 | G13: 0
A14: 二、支出 | B14: 5,062 | C14: 0 | D14: 5,062 | E14: 0 | F14: 0 | G14: 0
A15: 其中:社会保险待遇支出 | B15: 5,048 | C15: 0 | D15: 5,048 | E15: 0 | F15: 0 | G15: 0
A16: 其他支出 | B16: 14 | C16: 0 | D16: 14 | E16: 0 | F16: 0 | G16: 0
A17: 转移支出 | C17: 0 | E17: 0 | F17: 0 | G17: 0
A18: 中央调剂资金支出 | C18: 0 | E18: 0 | F18: 0 | G18: 0
A19: 三、本年收支结余 | B19: =SUM(B6)-SUM(B14) -> 1,153 | C19: 0 | D19: =SUM(D6)-SUM(D14) -> 1,153 | E19: 0 | F19: 0 | G19: 0
A20: 四、年末滚存结余 | B20: 18,523 | C20: 0 | D20: 18,523 | E20: 0 | F20: 0 | G20: 0

Sheet J17
A1: 2024年度涧西区地方政府一般债务限额和余额情况决算表
A2: 17表
A3: 单位:万元
A4: 项目 | B4: 决算数（全区） | C4: 决算数（本级）
A5: 上年末地方政府债务余额 | B5: 173,201 | C5: 81,544
A6: 本年地方政府债务余额限额(预算数) | B6: 179,434 | C6: 87,777
A7: 本年地方政府债务(转贷)收入 | B7: 17,200 | C7: 5,100
A8: 本年地方政府债务还本支出 | B8: 15,325 | C8: 1,830
A9: 本年采用其他方式化解的债务本金 | B9: 0 | C9: 0
A10: 年末地方政府债务余额 | B10: 175,076 | C10: 84,814

Sheet J18
A1: 2024年度涧西区地方政府专项债务限额和余额情况决算表
A2: 18表
A3: 单位:万元
A4: 项目 | B4: 决算数（全区） | C4: 决算数（本级）
A5: 上年末地方政府债务余额 | B5: 573,160 | C5: 241,300
A6: 本年地方政府债务余额限额(预算数) | B6: 943,924 | C6: 512,100
A7: 本年地方政府债务(转贷)收入 | B7: 374,124 | C7: 270,800
A8: 本年地方政府债务还本支出 | B8: 106,400 | C8: 24,000
A9: 本年采用其他方式化解的债务本金 | B9: -102,500 | C9: -24,000
A10: 年末地方政府债务余额 | B10: =B5+B7-B8-B9 -> 943,384 | C10: =C5+C7-C8-C9 -> 512,100
